fUST/lending_fUST_20250506
["ID","MTS","AMOUNT","RATE_DAILY","PERIOD"]
[360068355,1746534650471,-151.0,0.00019452,2]
[360068356,1746534650481,-400.0,0.00019452,2]
[360068358,1746534650490,-2013.68,0.00019452,2]
[360068361,1746534650500,-400.0,0.00019452,2]
[360068363,1746534650510,-151.0,0.00019452,2]
[360068365,1746534650519,-400.0,0.00019452,2]
[360068367,1746534650528,-151.0,0.00019452,2]
[360068368,1746534650537,-400.0,0.00019452,2]
[360068371,1746534650547,-548.25,0.00019452,2]
[360068372,1746534650556,-400.0,0.00019452,2]
[360068374,1746534650566,-400.0,0.00019452,2]
[360068376,1746534650575,-400.0,0.00019452,2]
[360068378,1746534650585,-406.77745766,0.00019452,2]
[360068380,1746534650594,-151.0,0.00019452,2]
[360068383,1746534650604,-400.0,0.00019452,2]
[360068384,1746534650613,-151.0,0.00019452,2]
[360068386,1746534650622,-1868.0,0.00019452,2]
[360068388,1746534650631,-419.77861188,0.00019452,2]
[360068390,1746534650640,-1315.89,0.00019452,2]
[360068393,1746534650650,-400.0,0.00019452,2]
[360068395,1746534650660,-400.0,0.00019452,2]
[360068397,1746534650669,-400.0,0.00019452,2]
[360068399,1746534650679,-704.01,0.00019452,2]
[360068401,1746534650688,-357.53345959,0.00019452,2]
[360068403,1746534650697,-1674.07,0.00019452,2]
[360068405,1746534650707,-400.0,0.00019452,2]
[360068407,1746534650716,-1000.0,0.00019452,2]
[360068409,1746534650725,-411.8726672,0.00019452,2]
[360068411,1746534650736,-416.26,0.00019452,2]
[360068413,1746534650746,-1791.53,0.00019452,2]
[360068415,1746534650755,-400.0,0.00019452,2]
[360068417,1746534650764,-679.79,0.00019452,2]
[360068419,1746534650773,-400.0,0.00019452,2]
[360068421,1746534650783,-1380.11,0.00019452,2]
[360068423,1746534650792,-7739.97,0.00019452,2]
[360068425,1746534650801,-255.08110875,0.00019452,2]
[360068427,1746534650811,-400.0,0.00019452,2]
[360068429,1746534650821,-358.0,0.00019452,2]
[360068431,1746534650830,-640.4,0.00019452,2]
[360068433,1746534650841,-400.0,0.00019452,2]
[360068435,1746534650850,-1932.08,0.00019452,2]
[360068437,1746534650860,-400.0,0.00019452,2]
[360068439,1746534650869,-1250.98,0.00019452,2]
[360068441,1746534650878,-400.0,0.00019452,2]
[360068443,1746534650887,-400.0,0.00019452,2]
[360068445,1746534650896,-785.16,0.00019452,2]
[360068447,1746534650905,-400.0,0.00019452,2]
[360068449,1746534650915,-8985.44,0.00019452,2]
[360068451,1746534650925,-400.0,0.00019452,2]
[360068453,1746534650935,-400.0,0.00019452,2]
[360068455,1746534650944,-997.0,0.00019452,2]
[360068457,1746534650954,-400.0,0.00019452,2]
[360068459,1746534650963,-400.0,0.00019452,2]
[360068461,1746534650973,-400.0,0.00019452,2]
[360068463,1746534650982,-400.0,0.00019452,2]
[360068465,1746534650991,-412.75607038,0.00019452,2]
[360068467,1746534651000,-408.62378726,0.00019452,2]
[360068469,1746534651009,-400.0,0.00019452,2]
[360068471,1746534651018,-509.11,0.00019452,2]
[360068473,1746534651027,-1233.44,0.00019452,2]
[360068475,1746534651036,-400.0,0.00019452,2]
[360068477,1746534651046,-1325.51,0.00019452,2]
[360068479,1746534651055,-405.73051122,0.00019452,2]
[360068481,1746534651065,-400.0,0.00019452,2]
[360068483,1746534651074,-400.0,0.00019452,2]
[360068485,1746534651084,-462.62,0.00019452,2]
[360068487,1746534651096,-410.46,0.00019452,2]
[360068489,1746534651105,-400.0,0.00019452,2]
[360068491,1746534651114,-400.0,0.00019452,2]
[360068493,1746534651123,-151.0,0.00019452,2]
[360068495,1746534651133,-151.0,0.00019452,2]
[360068497,1746534651141,-500.0,0.00019452,2]
[360068499,1746534651151,-400.0,0.00019452,2]
[360068501,1746534651160,-400.0,0.00019452,2]
[360068503,1746534651169,-828.74,0.00019452,2]
[360068505,1746534651180,-847.24,0.00019452,2]
[360068507,1746534651190,-400.0,0.00019452,2]
[360068509,1746534651200,-423.4323492,0.00019452,2]
[360068511,1746534651209,-404.25964606,0.00019452,2]
[360068513,1746534651219,-400.0,0.00019452,2]
[360068515,1746534651228,-400.0,0.00019452,2]
[360068517,1746534651238,-400.0,0.00019452,2]
[360068519,1746534651247,-283.177004,0.00019452,2]
[360068521,1746534651257,-151.0,0.00019452,2]
[360068523,1746534651267,-3603.23,0.00019452,2]
[360068525,1746534651277,-283.177004,0.00019452,2]
[360068527,1746534651286,-400.0,0.00019452,2]
[360068529,1746534651296,-2359.95,0.00019452,2]
[360068531,1746534651305,-3285.9,0.00019452,2]
[360068533,1746534651315,-400.0,0.00019452,2]
[360068536,1746534651324,-480.27,0.00019452,2]
[360068538,1746534651334,-283.177004,0.00019452,2]
[360068540,1746534651343,-283.177004,0.00019452,2]
[360068542,1746534651352,-400.0,0.00019452,2]
[360068543,1746534651362,-485.54,0.00019452,2]
[360068545,1746534651372,-406.03200982,0.00019452,2]
[360068547,1746534651381,-2613.41,0.00019452,2]
[360068549,1746534651390,-587.93,0.00019452,2]
[360068551,1746534651400,-400.0,0.00019452,2]
[360068553,1746534651409,-527.12,0.00019452,2]
[360068555,1746534651418,-400.0,0.00019452,2]
[360068558,1746534651428,-400.0,0.00019452,2]
[360068559,1746534651438,-400.0,0.00019452,2]
[360068562,1746534651447,-518.15,0.00019452,2]
[360068564,1746534651457,-1199.81,0.00019452,2]
[360068565,1746534651466,-400.0,0.00019452,2]
[360068567,1746534651476,-400.0,0.00019452,2]
[360068570,1746534651486,-405.87704333,0.00019452,2]
[360068572,1746534651495,-2629.83,0.00019452,2]
[360068574,1746534651505,-400.0,0.00019452,2]
[360068576,1746534651515,-991.85,0.00019452,2]
[360068591,1746534651524,-400.0,0.00019452,2]
[360068594,1746534651666,-17321.17,0.00019452,2]
[360068596,1746534651677,-400.0,0.00019452,2]
[360068598,1746534651686,-400.0,0.00019452,2]
[360068600,1746534651696,-400.0,0.00019452,2]
[360068602,1746534651706,-400.0,0.00019452,2]
[360068604,1746534651715,-400.0,0.00019452,2]
[360068606,1746534651725,-400.0,0.00019452,2]
[360068608,1746534651735,-718.21,0.00019452,2]
[360068610,1746534651744,-7226.3,0.00019452,2]
[360068612,1746534651753,-400.0,0.00019452,2]
[360068614,1746534651763,-151.1748255,0.00019452,2]
[360068616,1746534651772,-538.81,0.00019452,2]
[360068618,1746534651781,-400.0,0.00019452,2]
[360068620,1746534651790,-787.92,0.00019452,2]
[360068622,1746534651800,-400.0,0.00019452,2]
[360068624,1746534651809,-400.0,0.00019452,2]
[360068626,1746534651819,-152.477381,0.00019452,2]
[360068628,1746534651828,-2284.77,0.00019452,2]
[360068630,1746534651837,-500.0,0.00019452,2]
[360068632,1746534651847,-1306.81,0.00019452,2]
[360068634,1746534651856,-400.0,0.00019452,2]
[360068636,1746534651866,-4991.11,0.00019452,2]
[360068638,1746534651875,-1548.37,0.00019452,2]
[360068640,1746534651885,-2526.41,0.00019452,2]
[360068642,1746534651894,-400.0,0.00019452,2]
[360068644,1746534651904,-400.0,0.00019452,2]
[360068646,1746534651914,-401.81,0.00019452,2]
[360068648,1746534651924,-400.0,0.00019452,2]
[360068650,1746534651935,-2402.45,0.00019452,2]
[360068652,1746534651944,-1542.1,0.00019452,2]
[360068654,1746534651954,-1893.77,0.00019452,2]
[360068656,1746534651963,-920.3,0.00019452,2]
[360068658,1746534651973,-3527.44,0.00019452,2]
[360068660,1746534651982,-716.56,0.00019452,2]
[360068662,1746534651992,-151.0,0.00019452,2]
[360068664,1746534652002,-400.0,0.00019452,2]
[360068666,1746534652011,-400.0,0.00019452,2]
[360068668,1746534652020,-400.0,0.00019452,2]
[360068670,1746534652030,-1366.97,0.00019452,2]
[360068672,1746534652040,-432.39,0.00019452,2]
[360068674,1746534652049,-400.0,0.00019452,2]
[360068676,1746534652059,-1328.28,0.00019452,2]
[360068678,1746534652068,-151.0,0.00019452,2]
[360068680,1746534652077,-151.0,0.00019452,2]
[360068682,1746534652090,-2897.87,0.00019452,2]
[360068684,1746534652100,-400.0,0.00019452,2]
[360068686,1746534652109,-521.54,0.00019452,2]
[360068688,1746534652119,-561.66,0.00019452,2]
[360068690,1746534652128,-151.0,0.00019452,2]
[360068692,1746534652137,-151.0,0.00019452,2]
[360068694,1746534652147,-151.0,0.00019452,2]
[360068696,1746534652156,-349.47005764,0.00019452,2]
[360068698,1746534652165,-151.0,0.00019452,2]
[360068700,1746534652174,-1979.53,0.00019452,2]
[360068702,1746534652184,-400.0,0.00019452,2]
[360068704,1746534652193,-2364.19,0.00019452,2]
[360068706,1746534652202,-151.0,0.000195,2]
[360068708,1746534652211,-151.0,0.000195,2]
[360068710,1746534652220,-151.0,0.000195,2]
[360068712,1746534652230,-151.0,0.000195,2]
[360068714,1746534652240,-151.0,0.000195,2]
[360068716,1746534652249,-610.074772,0.000195,2]
[360068718,1746534652258,-610.074772,0.000195,2]
[360068720,1746534652267,-151.0,0.000195,2]
[360068722,1746534652276,-155.196221,0.000195,2]
[360068724,1746534652288,-151.0,0.00019521,2]
[360068726,1746534652298,-151.0,0.00019521,2]
[360068728,1746534652308,-210.824999,0.00019521,2]
[360068730,1746534652317,-210.824999,0.00019521,2]
[360068732,1746534652327,-151.0,0.00019521,2]
[360068734,1746534652336,-6020.79166461,0.00019521,2]
[360068736,1746534652346,-178.75540657,0.00019526,2]
[360068738,1746534652355,-151.0,0.000197,2]
[360068740,1746534652364,-151.0,0.000197,2]
[360068742,1746534652374,-151.0,0.000197,2]
[360068744,1746534652383,-151.0,0.000197,2]
[360068746,1746534652394,-151.0,0.000197,2]
[360068748,1746534652403,-151.0,0.000197,2]
[360068750,1746534652413,-151.0,0.000197,2]
[360068752,1746534652423,-151.0,0.000197,2]
[360068754,1746534652434,-1865.1,0.00019726,2]
[360068756,1746534652444,-841.96455721,0.00019726,3]
[360068758,1746534652454,-212.03916285,0.00019726,3]
[360068760,1746534652463,-12610.21250885,0.00019726,3]
[360068762,1746534652472,-160.0,0.00019726,3]
[360068765,1746534652482,-266810.09283311,0.00019726,2]
[360068767,1746534652491,-83063.72677499,0.00019726,3]
[360068791,1746534652706,-22448.31453237,0.00019726,3]
[360068946,1746534664418,-299.59544493,0.0001024,2]
[360068947,1746534667240,-0.40455507,0.0001024,2]
[360068948,1746534667266,-500.0,0.00010241,2]
[360068949,1746534667288,-500.0,0.00010241,2]
[360068950,1746534667310,-146.03635594,0.00010241,2]
[360068951,1746534682227,-353.96364406,0.00010241,2]
[360068952,1746534682250,-29.03419288,0.00010241,2]
[360068953,1746534697199,-316.45056469,0.0001024,2]
[360068954,1746534697223,-183.54943531,0.0001024,2]
[360068955,1746534712256,-189.97951763,0.0001024,2]
[360068956,1746534727280,-126.47104706,0.0001024,2]
[360068957,1746534727303,-221.56374515,0.0001024,2]
[360068958,1746534741693,-198.4061188,0.0001024,2]
[360068959,1746534752693,-80.03013605,0.0001024,2]
[360068960,1746534752716,-219.96986395,0.0001024,2]
[360068962,1746534756686,-230.85908545,0.0001024,2]
[360068963,1746534756718,-69.14091455,0.0001024,2]
[360068964,1746534772945,-182.08292402,0.0001024,2]
[360068967,1746534781526,-152.44023618,0.00010239,2]
[360068970,1746534787282,-347.55976382,0.00010239,2]
[360068971,1746534787307,-152.44023618,0.00010239,2]
[360068972,1746534802835,-334.99457705,0.00010239,2]
[360068974,1746534816846,-50.57949661,0.00010239,2]
[360068975,1746534816869,-249.42050339,0.00010239,2]
[360068976,1746534832940,-250.57949661,0.00010239,2]
[360068977,1746534832970,-200.81314288,0.00010239,2]
[360068978,1746534847280,-299.18685712,0.00010239,2]
[360068979,1746534847305,-159.6273742,0.00010239,2]
[360068980,1746534861752,-151.94940567,0.00010239,2]
[360068994,1746535589920,-194.93738202,0.00025,120]
[360068995,1746535590526,-509.84,0.000258,120]
[360068996,1746535590757,-509.84,0.000261,120]
[360068997,1746535591052,-509.84,0.000264,120]
[360068998,1746535591600,-509.84,0.000266,120]
[360068999,1746535592052,-255.86261798,0.000269,120]
[360069052,1746535832238,-13803.2408759,0.00013598,2]
[360069054,1746535832251,-2574.05583069,0.00013598,2]
[360069055,1746535832295,-58010.50724934,0.00013598,2]
[360069056,1746535832305,-236.43999716,0.00013599,2]
[360069057,1746535832315,-1000.0,0.00013599,2]
[360069058,1746535832326,-189.0705462,0.00015143,2]
[360069059,1746535832335,-300.0,0.00016141,2]
[360069060,1746535832344,-300.0,0.00016141,2]
[360069061,1746535832353,-300.0,0.00016141,2]
[360069063,1746535832362,-1200.0,0.00016141,2]
[360069065,1746535832371,-15416.91891647,0.00016142,2]
[360069078,1746535838399,-1773.826115,0.00016042,2]
[360069079,1746535838410,-34583.08108353,0.00016142,2]
[360069080,1746535838420,-500.0,0.00016142,2]
[360069081,1746535838429,-500.0,0.00016142,2]
[360069082,1746535838439,-500.0,0.00016142,2]
[360069083,1746535838449,-500.0,0.00016142,2]
[360069085,1746535838459,-500.0,0.00016142,2]
[360069086,1746535838469,-500.0,0.00016142,2]
[360069087,1746535838479,-216.76793506,0.00016142,2]
[360069088,1746535838489,-605.3869767,0.00016142,2]
[360069090,1746535838499,-500.0,0.00016143,2]
[360069092,1746535838509,-500.0,0.00016143,2]
[360069093,1746535838519,-500.0,0.00016143,2]
[360069094,1746535838529,-500.0,0.00016143,2]
[360069095,1746535838538,-500.0,0.00016143,2]
[360069096,1746535838548,-500.0,0.00016143,2]
[360069097,1746535838558,-465.69351534,0.00016143,2]
[360069098,1746535838568,-500.0,0.00016143,2]
[360069099,1746535838578,-13882.2611959,0.00016144,2]
[360069100,1746535838588,-500.0,0.000162,2]
[360069101,1746535838598,-500.0,0.000162,2]
[360069102,1746535838607,-500.0,0.000162,2]
[360069103,1746535838618,-691.8708786,0.00017065,2]
[360069104,1746535838628,-160.0,0.00017335,2]
[360069105,1746535838637,-160.0,0.00017335,2]
[360069106,1746535838648,-2232.4266643,0.0001739,2]
[360069107,1746535838659,-1200.0,0.00017733,2]
[360069108,1746535838670,-1766.1344616,0.00017864,2]
[360069109,1746535838679,-1500.0,0.000179,2]
[360069110,1746535838690,-203.15792843,0.0001799,2]
[360069111,1746535838702,-527.29095282,0.00018977,2]
[360069112,1746535838712,-250.0,0.0001898,2]
[360069113,1746535838722,-7030.2935666,0.00018998,2]
[360069114,1746535838732,-250.68870185,0.00019,2]
[360069115,1746535838743,-500.0,0.00019077,2]
[360069116,1746535838753,-500.0,0.00019077,2]
[360069117,1746535838763,-500.0,0.00019077,2]
[360069118,1746535838773,-500.0,0.00019077,2]
[360069119,1746535838783,-500.0,0.00019077,2]
[360069120,1746535838792,-500.0,0.00019077,2]
[360069121,1746535838802,-500.0,0.00019077,2]
[360069122,1746535838811,-500.0,0.00019077,2]
[360069123,1746535838821,-500.0,0.00019077,2]
[360069124,1746535838831,-500.0,0.00019077,2]
[360069125,1746535838840,-500.0,0.00019077,2]
[360069126,1746535838849,-500.0,0.00019077,2]
[360069127,1746535838859,-500.0,0.00019077,2]
[360069128,1746535838868,-500.0,0.00019077,2]
[360069129,1746535838878,-500.0,0.00019077,2]
[360069130,1746535838887,-230.76029918,0.00019077,2]
[360069131,1746535838897,-180.77721608,0.00019078,2]
[360069132,1746535838906,-784.22,0.00019168,3]
[360069133,1746535838916,-500.0,0.00019173,2]
[360069134,1746535838926,-500.0,0.00019173,2]
[360069135,1746535838935,-500.0,0.00019173,2]
[360069136,1746535838945,-500.0,0.00019173,2]
[360069137,1746535838954,-500.0,0.00019173,2]
[360069138,1746535838963,-500.0,0.00019173,2]
[360069139,1746535838976,-10836.17444109,0.00019176,2]
[360069140,1746535838986,-180.77721607,0.00019176,2]
[360069141,1746535838996,-400.0,0.00019178,2]
[360069142,1746535839005,-400.0,0.00019178,2]
[360069143,1746535839015,-407.88361149,0.00019178,2]
[360069144,1746535839025,-400.0,0.00019178,2]
[360069145,1746535839034,-400.0,0.00019178,2]
[360069146,1746535839043,-400.0,0.00019178,2]
[360069147,1746535839053,-412.8869152,0.00019178,2]
[360069148,1746535839063,-400.0,0.00019178,2]
[360069149,1746535839072,-400.0,0.00019178,2]
[360069150,1746535839082,-407.85728117,0.00019178,2]
[360069151,1746535839092,-401.97286654,0.00019178,2]
[360069152,1746535839101,-400.0,0.00019178,2]
[360069153,1746535839111,-400.0,0.00019178,2]
[360069154,1746535839120,-207.06732803,0.00019178,2]
[360069155,1746535839130,-504.90921476,0.00019178,2]
[360069156,1746535839141,-402.50494025,0.00019178,2]
[360069157,1746535839151,-400.0,0.00019178,2]
[360069158,1746535839160,-408.30801191,0.00019178,2]
[360069159,1746535839170,-404.95499723,0.00019178,2]
[360069160,1746535839179,-400.0,0.00019178,2]
[360069161,1746535839189,-400.0,0.00019178,2]
[360069162,1746535839199,-573.9,0.00019178,2]
[360069163,1746535839208,-400.0,0.00019178,2]
[360069164,1746535839217,-400.0,0.00019178,2]
[360069165,1746535839228,-400.0,0.00019178,2]
[360069166,1746535839238,-400.0,0.00019178,2]
[360069167,1746535839248,-400.0,0.00019178,2]
[360069168,1746535839257,-400.0,0.00019178,2]
[360069169,1746535839267,-510.47721875,0.00019178,2]
[360069170,1746535839277,-400.0,0.00019178,2]
[360069171,1746535839286,-403.72300293,0.00019178,2]
[360069172,1746535839296,-400.0,0.00019178,2]
[360069173,1746535839306,-400.0,0.00019178,2]
[360069174,1746535839316,-207.46873216,0.00019178,2]
[360069175,1746535839326,-403.58495225,0.00019178,2]
[360069176,1746535839335,-400.0,0.00019178,2]
[360069177,1746535839344,-400.0,0.00019178,2]
[360069178,1746535839354,-400.0,0.00019178,2]
[360069179,1746535839363,-838.67,0.00019178,2]
[360069180,1746535839372,-422.12844615,0.00019178,2]
[360069181,1746535839382,-400.0,0.00019178,2]
[360069182,1746535839391,-400.0,0.00019178,2]
[360069183,1746535839400,-400.0,0.00019178,2]
[360069184,1746535839410,-400.0,0.00019178,2]
[360069185,1746535839422,-741.85,0.00019178,2]
[360069186,1746535839431,-400.0,0.00019178,2]
[360069187,1746535839440,-403.49404676,0.00019178,2]
[360069188,1746535839450,-400.0,0.00019178,2]
[360069189,1746535839459,-400.0,0.00019178,2]
[360069190,1746535839469,-400.0,0.00019178,2]
[360069191,1746535839479,-400.0,0.00019178,2]
[360069192,1746535839489,-300.0,0.00019178,2]
[360069193,1746535839499,-526.79581726,0.00019178,2]
[360069194,1746535839508,-880.02,0.00019178,2]
[360069195,1746535839519,-400.0,0.00019178,2]
[360069196,1746535839528,-406.64532937,0.00019178,2]
[360069197,1746535839538,-400.0,0.00019178,2]
[360069198,1746535839547,-400.0,0.00019178,2]
[360069199,1746535839557,-400.0,0.00019178,2]
[360069200,1746535839566,-480.12203808,0.00019178,2]
[360069201,1746535839576,-231.68795328,0.00019178,2]
[360069202,1746535839586,-330.15802287,0.00019178,2]
[360069203,1746535839596,-400.0,0.00019178,2]
[360069204,1746535839605,-400.0,0.00019178,2]
[360069205,1746535839615,-1180.5,0.00019178,2]
[360069206,1746535839624,-401.96523987,0.00019178,2]
[360069207,1746535839633,-409.23229525,0.00019178,2]
[360069208,1746535839644,-400.0,0.00019178,2]
[360069209,1746535839654,-502.88033462,0.00019178,2]
[360069210,1746535839667,-405.17132737,0.00019178,2]
[360069211,1746535839677,-400.0,0.00019178,2]
[360069212,1746535839687,-400.0,0.00019178,2]
[360069213,1746535839696,-400.0,0.00019178,2]
[360069214,1746535839706,-400.0,0.00019178,2]
[360069215,1746535839717,-400.0,0.00019178,2]
[360069216,1746535839727,-500.75,0.00019178,2]
[360069217,1746535839739,-400.0,0.00019178,2]
[360069218,1746535839750,-400.0,0.00019178,2]
[360069219,1746535839759,-400.0,0.00019178,2]
[360069220,1746535839769,-400.0,0.00019178,2]
[360069221,1746535839779,-400.0,0.00019178,2]
[360069222,1746535839789,-407.5,0.00019178,2]
[360069223,1746535839798,-400.0,0.00019178,2]
[360069224,1746535839807,-317.15975652,0.00019178,2]
[360069225,1746535839817,-510.67,0.00019178,2]
[360069226,1746535839827,-2686.56,0.00019178,2]
[360069227,1746535839836,-400.0,0.00019178,2]
[360069228,1746535839846,-400.0,0.00019178,2]
[360069229,1746535839856,-400.0,0.00019178,2]
[360069230,1746535839866,-400.0,0.00019178,2]
[360069231,1746535839876,-400.0,0.00019178,2]
[360069232,1746535839885,-495.35070066,0.00019178,2]
[360069233,1746535839895,-400.0,0.00019178,2]
[360069234,1746535839904,-400.13538946,0.00019178,2]
[360069235,1746535839914,-400.0,0.00019178,2]
[360069236,1746535839924,-533.41,0.00019178,2]
[360069237,1746535839933,-400.0,0.00019178,2]
[360069238,1746535839943,-400.0,0.00019178,2]
[360069239,1746535839953,-400.0,0.00019178,2]
[360069240,1746535839962,-400.0,0.00019178,2]
[360069241,1746535839971,-400.0,0.00019178,2]
[360069242,1746535839981,-400.0,0.00019178,2]
[360069243,1746535839990,-400.0,0.00019178,2]
[360069244,1746535840000,-400.0,0.00019178,2]
[360069246,1746535840011,-400.0,0.00019178,2]
[360069248,1746535840021,-400.0,0.00019178,2]
[360069250,1746535840031,-412.26334584,0.00019178,2]
[360069252,1746535840040,-400.0,0.00019178,2]
[360069254,1746535840050,-502.25070254,0.00019178,2]
[360069256,1746535840060,-400.0,0.00019178,2]
[360069258,1746535840069,-400.0,0.00019178,2]
[360069260,1746535840078,-400.0,0.00019178,2]
[360069262,1746535840088,-400.0,0.00019178,2]
[360069264,1746535840097,-400.0,0.00019178,2]
[360069266,1746535840107,-203.04065088,0.00019178,2]
[360069268,1746535840116,-400.0,0.00019178,2]
[360069270,1746535840126,-400.0,0.00019178,2]
[360069272,1746535840135,-408.75831636,0.00019178,2]
[360069274,1746535840144,-401.05920041,0.00019178,2]
[360069276,1746535840154,-400.0,0.00019178,2]
[360069278,1746535840163,-1184.46,0.00019178,2]
[360069280,1746535840172,-400.0,0.00019178,2]
[360069282,1746535840182,-1120.58,0.00019178,2]
[360069284,1746535840191,-400.0,0.00019178,2]
[360069286,1746535840201,-510.75279138,0.00019178,2]
[360069288,1746535840210,-940.3,0.00019178,2]
[360069290,1746535840221,-400.0,0.00019178,2]
[360069292,1746535840230,-400.0,0.00019178,2]
[360069295,1746535840240,-400.0,0.00019178,2]
[360069297,1746535840249,-538.7,0.00019178,2]
[360069299,1746535840259,-400.0,0.00019178,2]
[360069301,1746535840269,-527.48,0.00019178,2]
[360069303,1746535840278,-424.31932119,0.00019178,2]
[360069305,1746535840288,-400.0,0.00019178,2]
[360069307,1746535840297,-400.0,0.00019178,2]
[360069309,1746535840307,-400.0,0.00019178,2]
[360069311,1746535840317,-400.0,0.00019178,2]
[360069314,1746535840336,-400.0,0.00019178,2]
[360069316,1746535840346,-649.63,0.00019178,2]
[360069318,1746535840356,-400.0,0.00019178,2]
[360069320,1746535840366,-410.57,0.00019178,2]
[360069322,1746535840376,-1000.0,0.00019178,2]
[360069324,1746535840386,-400.0,0.00019178,2]
[360069326,1746535840396,-400.0,0.00019178,2]
[360069328,1746535840406,-500.0,0.00019178,2]
[360069330,1746535840416,-358.0,0.00019178,2]
[360069332,1746535840426,-400.0,0.00019178,2]
[360069334,1746535840437,-1163.42,0.00019178,2]
[360069336,1746535840447,-400.0,0.00019178,2]
[360069339,1746535840457,-603.63,0.00019178,2]
[360069341,1746535840467,-400.0,0.00019178,2]
[360069343,1746535840479,-404.34239598,0.00019178,2]
[360069345,1746535840488,-400.0,0.00019178,2]
[360069347,1746535840498,-400.0,0.00019178,2]
[360069349,1746535840508,-400.0,0.00019178,2]
[360069351,1746535840518,-400.0,0.00019178,2]
[360069353,1746535840528,-400.0,0.00019178,2]
[360069355,1746535840538,-400.0,0.00019178,2]
[360069357,1746535840548,-400.0,0.00019178,2]
[360069359,1746535840558,-858.79,0.00019178,2]
[360069361,1746535840567,-505.87371042,0.00019178,2]
[360069363,1746535840577,-400.0,0.00019178,2]
[360069366,1746535840588,-400.0,0.00019178,2]
[360069367,1746535840598,-400.0,0.00019178,2]
[360069369,1746535840608,-400.0,0.00019178,2]
[360069371,1746535840617,-300.0,0.00019178,2]
[360069373,1746535840627,-403.69009193,0.00019178,2]
[360069377,1746535840637,-1000.98,0.00019178,2]
[360069379,1746535840646,-642.18,0.00019178,2]
[360069381,1746535840656,-4757.32,0.00019178,2]
[360069383,1746535840667,-400.0,0.00019178,2]
[360069385,1746535840677,-400.0,0.00019178,2]
[360069387,1746535840687,-400.0,0.00019178,2]
[360069389,1746535840696,-471.33829854,0.00019178,2]
[360069391,1746535840707,-400.0,0.00019178,2]
[360069393,1746535840716,-400.0,0.00019178,2]
[360069395,1746535840727,-400.0,0.00019178,2]
[360069397,1746535840736,-5250.65,0.00019178,2]
[360069399,1746535840747,-400.0,0.00019178,2]
[360069401,1746535840756,-304.14962058,0.00019178,2]
[360069403,1746535840766,-400.0,0.00019178,2]
[360069406,1746535840781,-400.0,0.00019178,2]
[360069408,1746535840791,-400.0,0.00019178,2]
[360069410,1746535840800,-400.0,0.00019178,2]
[360069412,1746535840810,-400.0,0.00019178,2]
[360069414,1746535840820,-400.0,0.00019178,2]
[360069416,1746535840830,-400.0,0.00019178,2]
[360069418,1746535840839,-400.0,0.00019178,2]
[360069420,1746535840850,-400.0,0.00019178,2]
[360069422,1746535840860,-400.0,0.00019178,2]
[360069424,1746535840870,-565.66,0.00019178,2]
[360069426,1746535840879,-400.0,0.00019178,2]
[360069428,1746535840890,-400.0,0.00019178,2]
[360069430,1746535840900,-3053.34,0.00019178,2]